bitfinex/quotes_SOLUSD_20220109
["timestamp","ask_amount","ask_price","bid_price","bid_amount"]
[1641763170847,10.4457,143.64,143.57,10.7051]
[1641763171178,10.4457,143.64,143.58,0.25]
[1641763173775,0.26,143.63,143.58,0.25]
[1641763173976,10.4457,143.64,143.58,0.25]
[1641763174175,23.7439,143.65,143.58,0.25]
[1641763174375,23.7439,143.65,143.58,10.6944]
[1641763175376,34.1888,143.65,143.58,10.6944]
[1641763175580,34.1888,143.65,143.58,0.25]
[1641763175777,0.26,143.64,143.58,0.25]
[1641763175978,0.26,143.64,143.57,0.51]
[1641763176377,10.447,143.62,143.56,0.51]
[1641763176576,10.2,143.64,143.54,3.93418288]
[1641763176779,0.26,143.61,143.54,3.93418288]
[1641763176976,3.25,143.63,143.54,3.93418288]
[1641763177177,13.19,143.63,143.52,3.93418288]
[1641763177379,23.3049,143.62,143.52,3.93418288]
[1641763177578,27.96911271,143.61,143.52,3.93418288]
[1641763177778,10.4492,143.59,143.52,3.93418288]
[1641763177980,0.26,143.58,143.52,3.93418288]
[1641763178181,3.26,143.58,143.5,3.93418288]
[1641763178379,3.26,143.58,143.5,4.18418288]
[1641763178784,0.26,143.58,143.5,4.18418288]
[1641763179381,0.26,143.58,143.5,3.93418288]
[1641763179784,10.4507,143.57,143.5,3.93418288]
[1641763179983,10.4507,143.57,143.49,92.34528288]
[1641763180786,10.4507,143.57,143.5,0.25]
[1641763181185,10.4514,143.56,143.5,4.1911253]
[1641763181384,23.63044335,143.55,143.5,3.9411253]
[1641763181583,23.89044335,143.55,143.5,3.9411253]
[1641763181792,23.89044335,143.55,143.5,3.9811253]
[1641763181984,23.89044335,143.55,143.5,0.04]
[1641763182418,10.4535,143.53,143.5,0.04]
[1641763182587,5.56279892,143.52,143.5,0.04]
[1641763182886,5.82279892,143.52,143.5,0.04]
[1641763183789,16.27739892,143.52,143.5,0.04]
[1641763184489,72.25,143.51,143.5,0.04]
[1641763184687,72.25,143.51,143.46,0.1]
[1641763184888,0.26,143.5,143.46,0.1]
[1641763185089,28.78007739,143.49,143.46,0.1]
[1641763185288,2.53059895,143.48,143.46,0.1]
[1641763185488,19.01279892,143.48,143.46,0.1]
[1641763185688,15.76279892,143.48,143.46,0.1]
[1641763186287,15.76279892,143.48,143.41,0.76306189]
[1641763186288,10.4579,143.47,143.41,0.76306189]
[1641763186490,10.2,143.46,143.37,0.42705726]
[1641763186890,0.25,143.45,143.37,0.42705726]
[1641763187090,9.94,143.45,143.37,0.42705726]
[1641763187290,10.19,143.45,143.37,0.42705726]
[1641763187591,31.25550476,143.41,143.35,13.38835726]
[1641763187791,31.25550476,143.41,143.35,15.16918312]
[1641763188395,31.25550476,143.41,143.36,0.25]
[1641763189994,31.25550476,143.41,143.36,0.51]
[1641763190592,31.25550476,143.41,143.35,4.78082586]
[1641763190792,0.26,143.4,143.35,3.0]
[1641763190993,0.26,143.4,143.32,98.4549]
[1641763191191,0.26,143.4,143.32,75.2559]
[1641763191392,10.45,143.4,143.32,75.2559]
[1641763191791,10.45,143.4,143.32,73.5129]
[1641763191792,10.2,143.4,143.32,73.5129]
[1641763192393,20.6639,143.4,143.32,75.29372586]
[1641763192594,20.6639,143.4,143.33,3.0]
[1641763192796,10.2,143.4,143.33,3.0]
[1641763193296,10.2,143.4,143.34,1.78082586]
[1641763193499,10.2,143.4,143.35,3.0]
[1641763194400,10.2,143.4,143.36,0.25]
[1641763194601,10.2,143.4,143.33,3.51]
[1641763194801,10.2,143.4,143.34,10.4619]
[1641763195001,9.94,143.4,143.35,3.51]
[1641763195302,9.94,143.43,143.36,1.743]
[1641763195501,0.26,143.42,143.36,0.25]
[1641763195701,0.26,143.42,143.35,1.743]
[1641763196006,0.26,143.42,143.36,2.29082586]
[1641763196400,52.04031853,143.43,143.36,0.51]
[1641763196600,52.04031853,143.43,143.37,3.0]
[1641763197003,52.04031853,143.43,143.38,0.25]
[1641763197203,41.57921853,143.43,143.38,0.25]
[1641763198026,41.57921853,143.43,143.37,3.51]
[1641763198426,41.57921853,143.43,143.37,0.25]
[1641763198628,41.57921853,143.43,143.38,3.0]
[1641763198831,41.57921853,143.43,143.36,0.26]
[1641763199126,41.57921853,143.43,143.36,3.0]
[1641763199327,41.57921853,143.43,143.33,2.253]
[1641763199527,41.57921853,143.43,143.37,0.25]
[1641763199730,41.57921853,143.43,143.35,3.0]
[1641763199930,41.57921853,143.43,143.36,0.26]
[1641763200530,41.57921853,143.43,143.35,0.26]
[1641763200932,0.26,143.42,143.35,10.7211]
[1641763201136,0.26,143.42,143.35,0.26]
[1641763201333,0.58,143.42,143.34,3.0]
[1641763201543,3.58,143.42,143.32,3.0]
[1641763201735,26.9091,143.42,143.32,3.0]
[1641763202032,26.9091,143.42,143.31,4.743]
[1641763202232,26.9091,143.42,143.32,0.25]
[1641763202633,26.9091,143.42,143.32,0.51]
[1641763202836,10.4629,143.41,143.32,12.75402586]
[1641763203032,10.4629,143.41,143.33,3.0]
[1641763203232,0.26,143.4,143.33,3.0]
[1641763203433,0.26,143.4,143.34,0.25]
[1641763204035,0.26,143.4,143.34,2.03082586]
[1641763204235,0.26,143.4,143.35,3.0]
[1641763204433,10.4629,143.41,143.35,3.0]
[1641763204635,23.3991,143.42,143.36,0.25]
[1641763205638,23.3991,143.42,143.35,4.743]
[1641763205836,33.8613,143.42,143.35,3.0]
[1641763206036,0.26,143.41,143.35,3.0]
[1641763208338,33.8613,143.42,143.35,3.0]
[1641763208536,10.4631,143.41,143.36,1.78082586]
[1641763208741,20.4031,143.41,143.32,13.4628]
[1641763208938,20.4031,143.41,143.33,2.03082586]
[1641763209141,9.94,143.41,143.34,3.0]
[1641763209338,9.94,143.41,143.35,0.25]
[1641763209738,9.94,143.41,143.35,2.03082586]
[1641763209938,9.94,143.41,143.36,1.78082586]
[1641763210341,9.94,143.41,143.35,0.51]
[1641763210540,9.94,143.41,143.35,3.51]
[1641763211641,9.94,143.41,143.36,12.24122586]
[1641763211842,9.94,143.41,143.36,13.98422586]
[1641763212042,9.94,143.41,143.37,2.29082586]
[1641763212442,9.94,143.41,143.38,1.78082586]
[1641763212643,9.94,143.41,143.39,0.501601]
[1641763213042,15.50279892,143.41,143.39,0.501601]
[1641763213241,15.50279892,143.41,143.37,0.25]
[1641763213442,15.50279892,143.41,143.36,0.25]
[1641763213847,15.50279892,143.41,143.35,0.25]
[1641763214044,0.26,143.4,143.34,3.93418288]
[1641763214245,0.58,143.4,143.35,3.93418288]
[1641763214544,25.92278837,143.37,143.35,3.93418288]
[1641763214745,55.56279892,143.36,143.35,3.93418288]
[1641763214945,58.82279892,143.36,143.35,3.93418288]
[1641763215145,55.82279892,143.36,143.3,79.23838288]
[1641763215445,10.4673,143.35,143.3,79.23838288]
[1641763215646,10.4673,143.35,143.3,3.93418288]
[1641763215844,0.26,143.34,143.3,3.93418288]
[1641763216045,0.26,143.34,143.29,3.93418288]
[1641763216247,0.26,143.34,143.29,2.93418288]
[1641763216450,10.7281,143.34,143.29,2.93418288]
[1641763216648,10.4681,143.34,143.29,2.93418288]
[1641763216846,9.94,143.35,143.3,4.19330669]
[1641763217549,9.94,143.35,143.3,0.25]
[1641763217748,0.26,143.34,143.29,2.93418288]
[1641763218350,0.26,143.34,143.27,5.88936818]
[1641763218552,0.26,143.34,143.28,0.25]
[1641763219051,10.4691,143.33,143.28,0.25]
[1641763219449,0.26,143.32,143.28,0.25]
[1641763220349,0.26,143.32,143.27,0.25]
[1641763220750,0.26,143.32,143.27,2.03082586]
[1641763220950,10.4691,143.33,143.27,1.78082586]
[1641763221150,10.4691,143.33,143.26,3.0]
[1641763221552,0.26,143.32,143.25,3.0]
[1641763221750,10.7296,143.32,143.29,0.04]
[1641763221953,5.56279892,143.31,143.29,0.04]
[1641763222552,24.94749162,143.3,143.29,0.04]
[1641763222753,24.94749162,143.3,143.29,0.02]
[1641763223152,24.94749162,143.3,143.28,0.04]
[1641763223552,5.56279892,143.29,143.28,0.04]
[1641763225157,33.9523,143.34,143.28,0.04]
[1641763225353,0.26,143.33,143.28,0.04]
[1641763225653,9.94,143.32,143.28,0.04]
[1641763225851,24.8723,143.31,143.28,0.04]
[1641763226054,9.94,143.3,143.28,0.04]
[1641763226452,48.7321,143.29,143.28,0.04]
[1641763226853,79.22095812,143.29,143.28,0.04]
[1641763228355,89.41095812,143.29,143.28,0.04]
[1641763228557,92.41095812,143.29,143.28,0.04]
[1641763228755,92.16095812,143.29,143.28,0.04]
[1641763228955,89.16095812,143.29,143.28,0.04]
[1641763229356,78.68885812,143.29,143.28,0.04]
[1641763230558,89.16095812,143.29,143.28,0.04]
[1641763231587,88.90095812,143.29,143.28,0.04]
[1641763232188,50.90095812,143.29,143.28,0.04]
[1641763233390,51.16095812,143.29,143.28,0.04]
[1641763236091,20.4121,143.29,143.28,0.04]
[1641763236291,9.94,143.29,143.28,0.04]
[1641763236492,35.0932,143.31,143.28,6.1043999]
[1641763236694,9.94,143.34,143.28,6.1043999]
[1641763237294,9.94,143.34,143.29,0.25]
[1641763237493,9.94,143.34,143.29,0.51]
[1641763237695,9.94,143.34,143.29,2.03082586]
[1641763238399,9.94,143.34,143.3,0.26]
[1641763243405,9.94,143.34,143.3,0.3]
[1641763244203,9.94,143.34,143.3,0.04]
[1641763247005,9.94,143.34,143.3,10.5049]
[1641763247405,9.94,143.34,143.31,0.25]
[1641763247806,9.94,143.34,143.32,6.0643999]
[1641763248006,9.94,143.34,143.33,0.25]
[1641763249009,9.94,143.34,143.3,0.04]
[1641763249408,0.26,143.33,143.3,0.04]
[1641763249810,0.26,143.33,143.31,3.03219995]
[1641763250035,9.7,143.34,143.32,3.03219995]
[1641763250236,9.7,143.34,143.3,0.04]
[1641763251738,20.1679,143.34,143.3,0.04]
[1641763252342,9.7,143.34,143.3,0.29]
[1641763252538,9.7,143.34,143.3,0.55]
[1641763253539,9.7,143.34,143.31,0.04]
[1641763253738,9.7,143.34,143.32,6.0643999]
[1641763254239,9.7,143.34,143.33,0.25]
[1641763255946,9.94,143.37,143.33,0.25]
[1641763256344,9.94,143.37,143.32,0.51]
[1641763258741,8.44,143.37,143.32,0.55]
[1641763261146,8.44,143.37,143.32,0.04]
[1641763261646,0.26,143.36,143.32,0.04]
[1641763262547,38.113765,143.35,143.32,0.04]
[1641763262747,10.4671,143.35,143.32,0.04]
[1641763262946,22.5236,143.39,143.32,0.04]
[1641763263148,9.94,143.38,143.32,0.04]
[1641763263347,10.45,143.38,143.32,0.04]
[1641763263548,9.94,143.38,143.32,0.04]
[1641763265055,0.26,143.37,143.32,0.04]
[1641763265453,24.3196,143.37,143.32,0.04]
[1641763265653,24.5796,143.37,143.32,0.04]
[1641763265853,35.1152,143.37,143.32,0.04]
[1641763267354,10.7163,143.36,143.32,0.04]
[1641763267556,10.01,143.35,143.32,0.04]
[1641763267754,10.27,143.35,143.32,0.04]
[1641763267956,0.51,143.34,143.32,0.04]
[1641763268356,28.22043389,143.33,143.32,0.04]
[1641763268757,28.48043389,143.33,143.32,0.04]
[1641763270260,28.22043389,143.33,143.32,0.04]
[1641763271461,28.22043389,143.33,143.32,3.07219995]
[1641763271761,28.22043389,143.33,143.32,0.04]
[1641763275366,28.73043389,143.33,143.32,0.04]
[1641763275564,38.42043389,143.33,143.32,0.04]
[1641763276767,48.88863389,143.33,143.32,0.04]
[1641763277369,49.13863389,143.33,143.32,0.04]
[1641763279873,48.88863389,143.33,143.32,0.04]
[1641763281576,48.62863389,143.33,143.32,0.04]
[1641763282376,48.87863389,143.33,143.32,0.04]
[1641763282777,48.62863389,143.33,143.32,0.04]
[1641763283081,48.88863389,143.33,143.32,0.04]
[1641763284401,49.13863389,143.33,143.32,0.04]
[1641763285101,48.88863389,143.33,143.32,0.04]
[1641763285502,49.13863389,143.33,143.32,0.04]
[1641763285705,48.88863389,143.33,143.32,0.04]
[1641763285902,48.62863389,143.33,143.32,0.04]
[1641763286302,48.88863389,143.33,143.32,0.04]
[1641763286904,49.13863389,143.33,143.32,0.04]
[1641763288002,48.88863389,143.33,143.32,0.04]
[1641763288408,49.13863389,143.33,143.32,0.04]
[1641763290004,48.88863389,143.33,143.32,0.04]
[1641763290408,49.13863389,143.33,143.32,0.04]
[1641763290606,48.62863389,143.33,143.32,0.04]
[1641763291208,49.13863389,143.33,143.32,0.04]
[1641763291611,77.13863389,143.33,143.32,0.04]
[1641763292010,80.13863389,143.33,143.32,0.04]
[1641763292410,81.88263389,143.33,143.27,1.97445932]
[1641763292610,10.4713,143.29,143.25,1.97445932]
[1641763292813,9.94,143.29,143.25,1.97445932]
[1641763293012,0.26,143.28,143.25,1.97445932]
[1641763293413,0.26,143.28,143.23,1.97445932]
[1641763293613,10.732,143.28,143.23,1.97445932]
[1641763293814,28.7905756,143.27,143.23,1.97445932]
[1641763294215,28.7905756,143.27,143.24,1.97445932]
[1641763294818,28.7905756,143.27,143.23,1.97445932]
[1641763295215,39.2631756,143.27,143.23,1.97445932]
[1641763295417,0.26,143.26,143.23,1.97445932]
[1641763296219,28.7905756,143.27,143.23,1.97445932]
[1641763296417,39.2635756,143.27,143.23,1.97445932]
[1641763297119,28.7905756,143.27,143.23,1.97445932]
[1641763297418,10.7339,143.26,143.23,1.97445932]
[1641763297619,0.26,143.26,143.23,1.97445932]
[1641763298218,0.26,143.26,143.22,2.07445932]
[1641763299017,10.4748,143.24,143.22,2.07445932]
[1641763299218,9.94,143.25,143.17,5.88936818]
[1641763299419,0.51,143.23,143.17,5.88936818]
[1641763299818,0.51,143.23,143.17,4.38936818]
[1641763300021,0.25,143.23,143.17,4.38936818]
[1641763300220,0.25,143.23,143.17,2.38936818]
[1641763300421,29.86973514,143.2,143.17,0.88936818]
[1641763300822,9.94,143.23,143.12,3.0]
[1641763301022,0.26,143.22,143.12,3.0]
[1641763301221,0.26,143.22,143.12,10.89607149]
[1641763301427,0.26,143.22,143.12,9.39607149]
[1641763301623,23.5507,143.22,143.12,33.76357149]
[1641763301825,26.09329912,143.21,143.12,33.76357149]
[1641763302024,26.09329912,143.21,143.13,4.19933404]
[1641763302624,26.09329912,143.21,143.13,3.94933404]
[1641763302824,10.4778,143.2,143.14,0.26]
[1641763303022,10.4778,143.2,143.13,10.4772]
[1641763303223,10.4778,143.2,143.14,3.0]
[1641763303426,26.09329912,143.21,143.12,25.8675]
[1641763304030,26.09329912,143.21,143.13,0.25]
[1641763304428,26.09329912,143.21,143.14,10.4764]
[1641763304628,34.0275,143.22,143.15,3.0]
[1641763304829,33.7675,143.22,143.15,3.25]
[1641763305429,23.2907,143.22,143.15,3.25]
[1641763305630,23.2907,143.22,143.15,0.25]
[1641763305930,23.2907,143.22,143.15,10.4753]
[1641763306333,23.2907,143.22,143.16,0.25]
[1641763306534,23.2907,143.22,143.16,0.51]
[1641763306732,23.2907,143.22,143.17,28.55480536]
[1641763306936,24.506,143.25,143.18,0.51]
[1641763307333,9.94,143.28,143.18,0.51]
[1641763307534,3.0,143.27,143.18,0.51]
[1641763307734,3.0,143.27,143.19,10.4722]
[1641763307936,3.0,143.27,143.2,0.51]
[1641763308139,25.6953,143.27,143.2,0.51]
[1641763308437,25.0,143.26,143.19,9.9822]
[1641763309839,25.6953,143.27,143.19,9.9822]
[1641763310059,9.94,143.3,143.2,3.0]
[1641763310263,9.94,143.3,143.21,10.4696]
[1641763310462,9.94,143.3,143.21,10.9796]
[1641763310860,33.92210019,143.3,143.21,10.9796]
[1641763311460,33.92210019,143.3,143.22,13.4694]
[1641763311862,33.92210019,143.3,143.23,0.26]
[1641763312062,33.92210019,143.3,143.23,2.005]
[1641763312462,33.92210019,143.3,143.23,0.26]
[1641763312863,33.92210019,143.3,143.23,10.9792]
[1641763313264,33.92210019,143.3,143.23,10.7292]
[1641763313465,0.25,143.29,143.23,0.26]
[1641763313665,23.98210019,143.3,143.22,1.745]
[1641763313865,0.26,143.29,143.23,0.26]
[1641763314170,0.07,143.28,143.23,0.26]
[1641763314366,0.07,143.28,143.22,0.26]
[1641763315368,0.07,143.28,143.22,0.51]
[1641763315768,0.07,143.28,143.22,2.255]
[1641763316370,0.07,143.28,143.23,3.0]
[1641763316571,0.07,143.28,143.23,4.745]
[1641763316773,0.07,143.28,143.24,0.51]
[1641763319476,0.07,143.28,143.24,0.55]
[1641763320573,0.07,143.28,143.24,0.29]
[1641763320973,0.07,143.28,143.24,0.04]
[1641763336015,0.07,143.28,143.24,0.3]
[1641763336215,0.07,143.28,143.24,0.55]
[1641763337215,0.07,143.28,143.24,14.0187]
[1641763337415,0.07,143.28,143.25,0.51]
[1641763337616,0.07,143.28,143.26,6.0643999]
[1641763338015,0.07,143.28,143.27,0.26]
[1641763338616,0.07,143.28,143.26,6.0643999]
[1641763339421,0.07,143.28,143.27,0.26]
[1641763340423,0.07,143.28,143.26,6.0643999]
[1641763341424,0.07,143.28,143.26,3.03219995]
[1641763341624,0.07,143.28,143.27,3.03219995]
[1641763342026,0.07,143.28,143.27,3.29219995]
[1641763342226,0.07,143.28,143.27,3.54219995]
[1641763344231,0.07,143.28,143.27,6.54219995]
[1641763344829,0.07,143.28,143.27,3.54219995]
[1641763345229,15.30953619,143.41,143.34,0.34]
[1641763345429,3.62553619,143.41,143.34,0.34]
[1641763345829,74.0499,143.42,143.34,0.34]
[1641763346030,30.80891009,143.41,143.34,0.34]
[1641763346330,10.4632,143.4,143.34,0.34]
[1641763347731,10.4639,143.39,143.34,0.34]
[1641763350736,30.80891009,143.41,143.34,0.34]
[1641763350932,41.27171009,143.41,143.34,0.34]
[1641763351433,41.27171009,143.41,143.34,0.85]
[1641763352935,1.743,143.44,143.35,1.78082586]
[1641763353132,10.4557,143.52,143.35,1.78082586]
[1641763353133,9.94,143.45,143.35,1.78082586]
[1641763353336,113.4914,143.47,143.36,3.51]
[1641763353832,26.71348134,143.46,143.36,3.51]
[1641763354033,10.4599,143.45,143.36,13.969]
[1641763354233,13.9699,143.45,143.36,10.969]
[1641763355465,10.4607,143.44,143.36,10.969]
[1641763355867,0.51,143.43,143.36,0.25]
[1641763356266,0.51,143.43,143.35,0.25]
[1641763356466,0.25,143.43,143.35,0.25]
[1641763356867,0.51,143.44,143.35,0.25]
[1641763357468,10.4621,143.42,143.35,0.25]
[1641763357869,0.26,143.41,143.35,0.25]
[1641763358072,10.4621,143.42,143.35,0.25]
[1641763358270,0.26,143.41,143.35,0.25]
[1641763358474,10.4621,143.42,143.35,0.25]
[1641763358672,0.26,143.41,143.35,0.51]
[1641763358873,0.26,143.41,143.34,10.8014]
[1641763359074,0.51,143.41,143.34,0.34]
[1641763359273,11.683,143.4,143.34,0.34]
[1641763359474,72.0,143.38,143.28,0.25]
[1641763359773,24.6586,143.37,143.28,0.25]
[1641763359973,23.66357982,143.36,143.28,0.25]
[1641763360373,34.13057982,143.36,143.28,10.4663]
[1641763360575,23.66357982,143.36,143.29,1.78082586]
[1641763360775,23.66357982,143.36,143.29,2.29082586]
[1641763360975,23.66357982,143.36,143.3,3.0]
[1641763361178,23.66357982,143.36,143.3,5.03082586]
[1641763361375,23.66357982,143.36,143.31,0.26]
[1641763362175,23.66357982,143.36,143.3,0.25]
[1641763362375,0.51,143.35,143.27,1.78082586]
[1641763362577,0.51,143.35,143.25,13.87507958]
[1641763362578,10.4679,143.34,143.26,10.4672]
[1641763362777,10.4679,143.34,143.23,38.82417958]
[1641763362983,0.26,143.33,143.23,38.82417958]
[1641763363380,0.26,143.33,143.23,34.8891]
[1641763363579,24.8105,143.33,143.23,34.8891]
[1641763363777,24.8105,143.33,143.24,0.51]
[1641763364381,24.8105,143.33,143.24,0.26]
[1641763364781,24.8105,143.33,143.25,10.4679]
[1641763364987,24.8105,143.33,143.26,0.26]
[1641763365781,24.5505,143.33,143.24,0.26]
[1641763365983,24.5505,143.33,143.26,1.78082586]
[1641763366214,24.5505,143.33,143.28,10.4662]
[1641763366383,24.3202,143.35,143.29,0.51]
[1641763366783,24.3202,143.35,143.29,0.25]
[1641763366983,24.3202,143.35,143.29,0.51]
[1641763368786,34.7874,143.35,143.26,10.9772]
[1641763372388,0.26,143.34,143.26,10.9772]
[1641763373088,34.7874,143.35,143.26,10.9772]
[1641763373718,0.26,143.34,143.26,10.9772]
[1641763373891,10.728,143.34,143.26,10.9772]
[1641763374087,35.6449,143.34,143.26,10.9772]
[1641763378993,35.3849,143.34,143.26,10.9772]
[1641763379394,35.3849,143.34,143.26,12.75802586]
[1641763380195,35.3849,143.34,143.26,10.9772]
[1641763380396,0.26,143.33,143.26,10.9772]
[1641763381324,0.51,143.33,143.26,10.9772]
[1641763381725,0.51,143.33,143.24,10.4688]
[1641763381925,0.51,143.33,143.21,73.82052586]
[1641763382126,3.51,143.33,143.21,73.82052586]
[1641763382325,3.51,143.33,143.22,0.26]
[1641763382727,10.4701,143.31,143.22,10.7302]
[1641763382925,23.00922709,143.3,143.22,10.7302]
[1641763383326,23.00922709,143.3,143.22,12.25102586]
[1641763383528,23.00922709,143.3,143.23,0.25]
[1641763384327,23.00922709,143.3,143.23,10.72]
[1641763384727,23.00922709,143.3,143.24,0.26]
[1641763385426,23.00922709,143.3,143.23,10.72]
[1641763385626,23.00922709,143.3,143.23,0.25]
[1641763386028,23.00922709,143.3,143.22,0.25]
[1641763386229,27.0435,143.33,143.22,0.25]
[1641763386230,26.7835,143.33,143.22,0.25]
[1641763386428,26.7835,143.33,143.24,1.78082586]
[1641763386632,23.7835,143.33,143.25,10.4676]
[1641763386829,23.7835,143.33,143.25,10.9776]
[1641763387028,23.7835,143.33,143.26,1.78082586]
[1641763387228,23.7835,143.33,143.27,23.90712513]
[1641763387427,23.7835,143.33,143.27,0.51]
[1641763387628,23.7835,143.33,143.27,10.9767]
[1641763387828,47.69971179,143.35,143.27,10.9767]
[1641763388630,0.26,143.34,143.27,10.9767]
[1641763388931,0.51,143.34,143.27,10.9767]
[1641763389528,0.25,143.34,143.27,10.9767]
[1641763389730,58.16681179,143.35,143.27,10.7167]
[1641763389930,0.25,143.34,143.27,10.7167]
[1641763390630,58.16681179,143.35,143.27,10.7167]
[1641763390831,0.26,143.34,143.27,10.7167]
[1641763391032,3.26,143.34,143.27,10.7167]
[1641763391638,0.26,143.34,143.27,10.7167]
[1641763392036,3.26,143.34,143.27,10.7167]
[1641763392637,13.7279,143.34,143.27,0.25]
[1641763392836,13.7279,143.34,143.26,0.51]
[1641763393236,10.7279,143.34,143.26,0.51]
[1641763393437,33.2571,143.34,143.26,0.51]
[1641763393637,0.26,143.33,143.26,0.51]
[1641763394241,0.26,143.33,143.26,10.7273]
[1641763395540,0.26,143.33,143.27,0.25]
[1641763396541,0.26,143.33,143.27,10.717]
[1641763397443,23.5292,143.34,143.27,10.717]
[1641763397643,23.5292,143.34,143.28,0.26]
[1641763399346,23.5292,143.34,143.28,10.7263]
[1641763399545,23.5292,143.34,143.29,0.25]
[1641763401345,47.69971179,143.35,143.29,10.7154]
[1641763401544,47.69971179,143.35,143.29,10.4654]
[1641763401846,47.69971179,143.35,143.3,0.25]
[1641763402344,24.4631,143.36,143.3,0.25]
[1641763403044,77.4341,143.39,143.3,10.4649]
[1641763403246,9.94,143.41,143.3,10.4649]
[1641763403444,3.0,143.38,143.31,0.51]
[1641763404053,3.0,143.39,143.31,0.25]
[1641763404452,0.26,143.38,143.3,0.51]
[1641763404749,0.26,143.38,143.3,10.9734]
[1641763404952,3.0,143.39,143.3,10.9734]
[1641763405350,3.0,143.39,143.31,3.0]
[1641763405750,3.0,143.39,143.32,0.51]
[1641763406151,54.61360748,143.4,143.32,10.9725]
[1641763406450,64.55360748,143.4,143.33,0.26]
[1641763407053,64.55360748,143.4,143.31,3.51]
[1641763407852,64.55360748,143.4,143.32,10.462]
[1641763408252,64.55360748,143.4,143.33,0.51]
[1641763408550,64.55360748,143.4,143.31,3.51]
[1641763409051,64.55360748,143.4,143.32,10.4623]
[1641763409452,64.30360748,143.4,143.33,0.51]
[1641763410456,64.30360748,143.4,143.33,0.25]
[1641763410654,0.26,143.39,143.32,0.25]
[1641763410854,0.51,143.39,143.32,0.25]
[1641763411354,0.51,143.39,143.3,10.4646]
[1641763411559,54.36360748,143.4,143.31,0.25]
[1641763411755,10.4648,143.38,143.31,0.25]
[1641763411955,10.4648,143.38,143.31,0.51]
[1641763413558,10.4648,143.38,143.31,10.9742]
[1641763413769,10.4648,143.38,143.31,10.4642]
[1641763413957,64.82740748,143.4,143.32,0.26]
[1641763414860,64.82740748,143.4,143.32,10.7235]
[1641763415057,64.82740748,143.4,143.32,10.4635]
[1641763415259,64.82740748,143.4,143.33,0.26]
[1641763415460,10.4645,143.39,143.33,0.26]
[1641763415657,54.36360748,143.4,143.33,0.26]
[1641763415857,0.25,143.39,143.3,3.51]
[1641763416060,0.25,143.39,143.3,13.9745]
[1641763417461,0.51,143.39,143.3,3.0]
[1641763417662,0.51,143.39,143.29,101.9214]
[1641763418461,3.51,143.39,143.29,101.9214]
[1641763418861,10.4663,143.36,143.3,0.51]
[1641763419461,10.4663,143.36,143.3,0.25]
[1641763419661,0.51,143.35,143.28,1.93689648]
[1641763419864,10.4686,143.33,143.28,1.93689648]
[1641763420162,10.4686,143.33,143.27,1.93689648]
[1641763420362,24.3275,143.32,143.27,1.93689648]
[1641763420562,23.22173699,143.31,143.27,1.93689648]
[1641763421663,0.25,143.3,143.27,1.93689648]
[1641763421867,0.25,143.3,143.25,1.93689648]
[1641763422063,24.8238,143.3,143.25,1.93689648]